bitfinex/quotes_BTCUSD_20250508
["timestamp","ask_amount","ask_price","bid_price","bid_amount"]
[1746745531428,0.004,102910.0,102900.0,1.21318795]
[1746745531639,0.004,102910.0,102900.0,1.60145318]
[1746745531847,0.01812301,102920.0,102910.0,0.49434439]
[1746745532068,0.40942814,102950.0,102920.0,0.3555]
[1746745532271,0.51009506,102950.0,102920.0,0.57970843]
[1746745532468,0.03873934,102940.0,102920.0,0.56420843]
[1746745532675,0.04036235,102940.0,102920.0,1.18374902]
[1746745532828,0.02496235,102940.0,102920.0,1.21006502]
[1746745533032,0.02496235,102940.0,102920.0,1.20034902]
[1746745533236,0.02496235,102940.0,102920.0,1.20234902]
[1746745533497,0.02496235,102940.0,102920.0,0.96620843]
[1746745533664,0.13537046,102940.0,102920.0,0.745]
[1746745533873,0.23603738,102940.0,102920.0,0.745]
[1746745534079,0.0319,102930.0,102920.0,0.745]
[1746745534450,0.0319,102930.0,102920.0,0.743]
[1746745534658,0.01812301,102930.0,102920.0,0.743]
[1746745534892,0.01812301,102930.0,102920.0,0.746]
[1746745535295,0.01812301,102930.0,102920.0,0.743]
[1746745535514,0.01812301,102930.0,102920.0,0.746]
[1746745535709,0.01912301,102930.0,102920.0,0.96720843]
[1746745535886,0.01912301,102930.0,102920.0,1.1712503]
[1746745536088,0.01926931,102930.0,102920.0,1.18396639]
[1746745536872,0.01926931,102930.0,102920.0,1.17425039]
[1746745537070,0.01926931,102930.0,102920.0,1.18396648]
[1746745537309,0.01926931,102930.0,102920.0,0.95004196]
[1746745537517,0.01926931,102930.0,102920.0,0.97992471]
[1746745538121,0.01926931,102930.0,102920.0,1.21686639]
[1746745538336,0.02597279,102930.0,102920.0,1.21686639]
[1746745538558,0.00784978,102930.0,102920.0,1.20715039]
[1746745538765,0.00784978,102930.0,102920.0,1.21686648]
[1746745539003,0.02598349,102930.0,102920.0,1.20715039]
[1746745539208,0.02598349,102930.0,102920.0,1.17425039]
[1746745539445,0.02598349,102930.0,102920.0,0.746]
[1746745540327,0.02598349,102930.0,102920.0,1.1742502]
[1746745540572,0.02598349,102930.0,102920.0,1.19946601]
[1746745540809,0.02598349,102930.0,102920.0,1.20918163]
[1746745541019,0.02598349,102930.0,102920.0,1.25476584]
[1746745541482,0.02598349,102930.0,102920.0,1.24505022]
[1746745541707,0.02598349,102930.0,102920.0,1.25476584]
[1746745542436,0.02598349,102930.0,102920.0,0.77518421]
[1746745542663,0.02598349,102930.0,102920.0,1.20343441]
[1746745542887,0.02598349,102930.0,102920.0,1.22815041]
[1746745543571,0.02598349,102930.0,102920.0,1.24758212]
[1746745543797,0.02598349,102930.0,102920.0,1.22815041]
[1746745545152,0.02598349,102930.0,102920.0,1.23786622]
[1746745545383,0.002,102950.0,102940.0,0.7876384]
[1746745545615,0.002,102950.0,102940.0,0.80021066]
[1746745545824,0.002,102950.0,102940.0,0.8196384]
[1746745546027,0.002,102950.0,102940.0,0.83417935]
[1746745546227,0.002,102950.0,102940.0,1.34456]
[1746745546663,0.004,102950.0,102940.0,1.34503983]
[1746745547690,0.005,102950.0,102940.0,1.34503983]
[1746745548101,0.005,102950.0,102940.0,1.37012108]
[1746745548435,0.002,102970.0,102960.0,0.58441558]
[1746745548648,0.002,102970.0,102960.0,1.05834447]
[1746745548882,0.00217683,102970.0,102960.0,1.03892031]
[1746745549088,0.00217683,102970.0,102960.0,1.18409245]
[1746745549287,0.00217683,102970.0,102960.0,1.58409245]
[1746745549512,0.00223727,102970.0,102960.0,1.58409245]
[1746745549922,0.00223727,102970.0,102960.0,1.60692926]
[1746745550129,0.00323727,102970.0,102960.0,1.60692926]
[1746745550254,0.003,102970.0,102960.0,1.60692926]
[1746745550612,0.003,102970.0,102960.0,1.6065875]
[1746745551260,0.005,102970.0,102960.0,1.6065875]
[1746745552941,0.002,102990.0,102980.0,0.59348403]
[1746745553158,0.002,102990.0,102980.0,0.94855979]
[1746745553317,0.00789978,102990.0,102980.0,1.5986073]
[1746745553508,0.00224388,102990.0,102980.0,1.62144411]
[1746745553736,0.00224388,102990.0,102980.0,2.02144411]
[1746745554342,0.00324388,102990.0,102980.0,1.98889734]
[1746745554545,0.00324388,102990.0,102980.0,1.9986073]
[1746745554940,0.00324388,102990.0,102980.0,1.55222657]
[1746745554941,0.00724388,102990.0,102980.0,1.55222657]
[1746745555204,0.00724388,102990.0,102980.0,1.49654532]
[1746745555410,0.00324388,102990.0,102980.0,1.6994683]
[1746745555555,0.00324388,102990.0,102980.0,1.74397032]
[1746745555982,0.00324388,102990.0,102980.0,1.75368056]
[1746745556197,0.00324388,102990.0,102980.0,1.76868019]
[1746745556423,0.00072304,102990.0,102980.0,2.07172645]
[1746745556795,0.00072304,102990.0,102980.0,2.0968077]
[1746745557542,0.00072304,102990.0,102980.0,2.11964451]
[1746745557756,0.00022916,102990.0,102980.0,2.70166251]
[1746745557957,0.00022916,102990.0,102980.0,2.33609651]
[1746745558188,0.002,103010.0,103000.0,0.01454085]
[1746745558391,0.00214375,103010.0,103000.0,0.57077833]
[1746745558600,0.00214375,103010.0,103000.0,0.59391841]
[1746745558730,0.00214375,103010.0,103000.0,0.62002667]
[1746745558977,0.00214375,103010.0,103000.0,1.02973484]
[1746745559235,0.00214375,103010.0,103000.0,1.00465359]
[1746745559408,0.00514375,103010.0,103000.0,1.01031841]
[1746745559579,0.00514375,103010.0,103000.0,0.98523707]
[1746745559780,0.00514375,103010.0,103000.0,0.98523716]
[1746745559982,0.00514375,103010.0,103000.0,0.7611997]
[1746745560184,0.00514375,103010.0,103000.0,0.98523725]
[1746745560390,0.00514375,103010.0,103000.0,0.78135396]
[1746745560591,0.00714375,103010.0,103000.0,0.7746625]
[1746745560829,0.00714375,103010.0,103000.0,0.9785457]
[1746745561024,0.00714375,103010.0,103000.0,0.76495405]
[1746745561195,0.00714375,103010.0,103000.0,0.96883706]
[1746745561390,0.00714375,103010.0,103000.0,0.97854523]
[1746745561592,0.00714375,103010.0,103000.0,0.97854532]
[1746745561882,0.00741535,103010.0,103000.0,0.98825349]
[1746745562090,0.00741535,103010.0,103000.0,1.39484532]
[1746745562289,0.00741535,103010.0,103000.0,1.40455349]
[1746745562499,0.00741535,103010.0,103000.0,0.9412165]
[1746745562727,0.00741535,103010.0,103000.0,1.3594288]
[1746745562988,0.00741535,103010.0,103000.0,1.3948457]
[1746745563195,0.00741535,103010.0,103000.0,1.17154532]
[1746745563361,0.00741535,103010.0,103000.0,1.1749625]
[1746745563563,0.00741535,103010.0,103000.0,1.3788457]
[1746745563735,0.00741535,103010.0,103000.0,1.04033755]
[1746745563990,0.04061535,103010.0,103000.0,0.8163]
[1746745564174,0.02401535,103010.0,103000.0,1.04033755]
[1746745564384,0.02401535,103010.0,103000.0,1.3948784]
[1746745564620,0.02101535,103010.0,103000.0,1.3948784]
[1746745564775,0.01901535,103010.0,103000.0,1.3948784]
[1746745564972,0.02001535,103010.0,103000.0,1.3948784]
[1746745565167,0.02201535,103010.0,103000.0,1.3948784]
[1746745565788,0.02201535,103010.0,103000.0,1.42345512]
[1746745566809,0.03841535,103010.0,103000.0,1.42345512]
[1746745567408,0.03841535,103010.0,103000.0,1.19941757]
[1746745567611,0.03841535,103010.0,103000.0,1.42345512]
[1746745567825,0.03841535,103010.0,103000.0,1.02345512]
[1746745567998,0.03841535,103010.0,103000.0,0.60715512]
[1746745568198,0.05646139,103010.0,103000.0,0.60715512]
[1746745568465,0.06259508,103010.0,103000.0,0.60715512]
[1746745568667,0.06259508,103010.0,103000.0,1.00715512]
[1746745568881,0.04619508,103010.0,103000.0,1.00715512]
[1746745569088,0.06169508,103010.0,103000.0,1.00715512]
[1746745569833,0.04619508,103010.0,103000.0,1.00715512]
[1746745570044,0.02959508,103010.0,103000.0,1.21103841]
[1746745570497,0.01154904,103010.0,103000.0,1.21103841]
[1746745571416,0.01154904,103010.0,103000.0,1.36262176]
[1746745571941,0.01154904,103010.0,103000.0,2.10237231]
[1746745572208,0.002,103030.0,103020.0,0.99675301]
[1746745572454,0.002,103030.0,103020.0,0.91298972]
[1746745572455,0.02005753,103030.0,103020.0,0.91298972]
[1746745572699,0.02005753,103030.0,103020.0,0.70432657]
[1746745572889,0.002,103030.0,103020.0,0.70208213]
[1746745573175,0.002,103030.0,103020.0,1.12716338]
[1746745573626,0.003,103030.0,103020.0,1.12716338]
[1746745574433,0.004,103030.0,103020.0,1.12716338]
[1746745574811,0.004,103030.0,103020.0,1.10208213]
[1746745575539,0.00422068,103030.0,103020.0,1.07924532]
[1746745576443,0.03682068,103030.0,103020.0,0.96403755]
[1746745576877,0.1374876,103030.0,103020.0,0.4]
[1746745577086,0.0326,103010.0,103000.0,0.02857672]
[1746745577288,0.0326,103010.0,103000.0,0.25261427]
[1746745577508,0.032782,103010.0,103000.0,0.96403755]
[1746745577708,0.05089532,103010.0,103000.0,0.96403755]
[1746745577961,0.05746889,103010.0,103000.0,0.62403755]
[1746745578290,0.04116889,103010.0,103000.0,0.62803755]
[1746745578493,0.04116889,103010.0,103000.0,0.6425784]
[1746745578742,0.04116889,103010.0,103000.0,0.9785784]
[1746745579323,0.04116889,103010.0,103000.0,0.9805784]
[1746745579507,0.02305557,103010.0,103000.0,0.9805784]
[1746745579738,0.0163,103010.0,103000.0,0.9825784]
[1746745580116,0.0318,103010.0,103000.0,0.9825784]
[1746745580464,0.04994215,103010.0,103000.0,0.9825784]
[1746745581225,0.0567463,103010.0,103000.0,0.9825784]
[1746745583065,0.0567463,103010.0,103000.0,0.79189022]
[1746745583870,0.0567463,103010.0,103000.0,0.79092347]
[1746745584460,0.0249463,103010.0,103000.0,0.99480676]
[1746745584658,0.0249463,103010.0,103000.0,1.11489011]
[1746745584991,0.01814215,103010.0,103000.0,1.11489011]
[1746745585319,0.0326,103030.0,103010.0,0.56810194]
[1746745585462,0.0326,103030.0,103020.0,0.56597865]
[1746745585651,0.002,103030.0,103020.0,1.01616643]
[1746745585852,0.002,103030.0,103020.0,0.78242231]
[1746745586116,0.002,103030.0,103020.0,0.5785784]
[1746745586713,0.008808,103030.0,103020.0,0.5785784]
[1746745586910,0.010808,103030.0,103020.0,0.5785784]
[1746745587119,0.042708,103030.0,103020.0,0.34]
[1746745587312,0.045708,103030.0,103020.0,0.34]
[1746745587672,0.06386309,103030.0,103020.0,0.34]
[1746745587871,0.06086309,103030.0,103020.0,0.34]
[1746745588074,0.06386309,103030.0,103020.0,0.34]
[1746745588947,0.06386309,103030.0,103020.0,0.74]
[1746745590648,0.045708,103030.0,103020.0,0.74]
[1746745591249,0.045708,103030.0,103020.0,0.76480985]
[1746745591453,0.06386383,103030.0,103020.0,0.76480985]
[1746745591683,0.06386383,103030.0,103020.0,0.9888474]
[1746745591885,0.06824226,103030.0,103020.0,0.76480985]
[1746745592091,0.05008643,103030.0,103020.0,0.76480985]
[1746745592420,0.06824226,103030.0,103020.0,0.76480985]
[1746745593091,0.05008643,103030.0,103020.0,0.76480985]
[1746745594275,0.05008643,103030.0,103020.0,0.42480985]
[1746745595189,0.05008643,103030.0,103020.0,0.02480985]
[1746745595524,0.05008643,103030.0,103020.0,0.4]
[1746745598657,0.0155,103020.0,103010.0,0.58936864]
[1746745598881,0.0155,103020.0,103010.0,0.36533109]
[1746745599077,0.02052291,103020.0,103010.0,0.76533109]
[1746745599313,0.02052291,103020.0,103010.0,0.98936864]
[1746745599916,0.02152291,103020.0,103010.0,0.76533109]
[1746745600094,0.02252291,103020.0,103010.0,0.76533109]
[1746745600512,0.02252291,103020.0,103010.0,0.98936864]
[1746745600717,0.02252291,103020.0,103010.0,0.76533109]
[1746745601474,0.03892291,103020.0,103010.0,0.76533109]
[1746745602943,0.02252291,103020.0,103010.0,0.76533109]
[1746745605827,0.03832291,103020.0,103010.0,0.76533109]
[1746745612576,0.02252291,103020.0,103010.0,0.76533109]
[1746745613280,0.02933306,103020.0,103010.0,0.76533109]
[1746745613636,0.01383306,103020.0,103010.0,0.76533109]
[1746745613831,0.02893306,103020.0,103010.0,0.76533109]
[1746745614079,0.04413306,103020.0,103010.0,0.76533109]
[1746745614894,0.02893306,103020.0,103010.0,0.76533109]
[1746745615451,0.02212291,103020.0,103010.0,0.76533109]
[1746745616123,0.03792291,103020.0,103010.0,0.76533109]
[1746745616349,0.03792291,103020.0,103010.0,0.02533109]
[1746745616782,0.0319,103010.0,103000.0,0.34]
[1746745617341,0.03620637,103010.0,103000.0,0.34]
[1746745617553,0.04302992,103010.0,103000.0,0.34]
[1746745618184,0.04302992,103010.0,103000.0,0.341]
[1746745618390,0.04302992,103010.0,103000.0,0.343]
[1746745619640,0.04302992,103010.0,103000.0,0.7806291]
[1746745619856,0.01112992,103010.0,103000.0,0.79033727]
[1746745620061,0.01112992,103010.0,103000.0,0.94685311]
[1746745620280,0.00430637,103010.0,103000.0,0.97205967]
[1746745620719,0.04072355,103030.0,103010.0,0.22896241]
[1746745620935,0.04072355,103030.0,103020.0,0.22597866]
[1746745621144,0.02492355,103030.0,103010.0,0.47241413]
[1746745621320,0.02492355,103030.0,103020.0,0.22597866]
[1746745621543,0.00882355,103030.0,103020.0,1.12901993]
[1746745621746,0.00882355,103030.0,103020.0,1.20842715]
[1746745621951,0.01182355,103030.0,103020.0,1.20842715]
[1746745622154,0.008,103030.0,103020.0,1.20842715]
[1746745622363,0.008,103030.0,103020.0,1.1833459]
[1746745622559,0.002,103030.0,103020.0,1.1833459]
[1746745622764,0.002,103030.0,103020.0,1.1873459]
[1746745623383,0.002,103030.0,103020.0,1.0013156]
[1746745623578,0.04082212,103030.0,103020.0,1.37938198]
[1746745623750,0.03111687,103030.0,103020.0,1.3696757]
[1746745623958,0.04430572,103030.0,103020.0,0.34]
[1746745624520,0.0465716,103030.0,103020.0,0.345]
[1746745624710,0.04330572,103030.0,103020.0,0.349]
[1746745624911,0.04330572,103030.0,103020.0,1.06647242]
[1746745624912,0.002,103030.0,103020.0,1.06647242]
[1746745625236,0.00526588,103030.0,103020.0,1.16213934]
[1746745625446,0.00526588,103030.0,103020.0,1.63505734]
[1746745625650,0.05734187,103050.0,103040.0,0.78725068]
[1746745625800,0.02837409,103050.0,103040.0,0.77754638]
[1746745626034,0.04778166,103050.0,103040.0,0.78725068]
[1746745626273,0.03807905,103050.0,103040.0,0.55350902]
[1746745626443,0.05225167,103050.0,103040.0,0.34]
[1746745626640,0.04040487,103040.0,103030.0,0.55836478]
[1746745626912,0.00970487,103040.0,103030.0,0.78240233]
[1746745627241,0.00970487,103040.0,103030.0,0.79210795]
[1746745627509,0.00970487,103040.0,103030.0,0.80181348]
[1746745627725,0.00970487,103040.0,103030.0,0.84361891]
[1746745627930,0.00970487,103040.0,103030.0,0.85302547]
[1746745628122,0.00970487,103040.0,103030.0,0.83672547]
[1746745628355,0.01270487,103040.0,103030.0,0.83672547]
[1746745628851,0.01270487,103040.0,103030.0,0.81151891]
[1746745629412,0.01270487,103040.0,103030.0,0.78240252]
[1746745629667,0.04340487,103040.0,103030.0,0.35454085]
[1746745629881,0.04340487,103040.0,103030.0,0.34]
[1746745631470,0.04340487,103040.0,103020.0,0.07024891]
[1746745631471,0.04060572,103030.0,103020.0,0.07024891]
[1746745631699,0.14127264,103030.0,103020.0,0.04578972]
[1746745631925,0.33539085,103030.0,103020.0,0.04578972]
[1746745632773,0.33539085,103030.0,103020.0,0.26982727]
[1746745632986,0.33539085,103030.0,103020.0,0.04678972]
[1746745633186,0.33539085,103030.0,103020.0,0.07145338]
[1746745633433,0.35352355,103030.0,103020.0,0.07145338]
[1746745633663,0.35352355,103030.0,103020.0,0.07245338]
[1746745634296,0.35352355,103030.0,103020.0,0.04778972]
[1746745635193,0.36032385,103030.0,103020.0,0.04778972]
[1746745635410,0.25376255,103030.0,103020.0,0.22403755]
[1746745635635,0.23846255,103030.0,103020.0,0.76788127]
[1746745635869,0.22875693,103030.0,103020.0,0.76788146]
[1746745636093,0.20382393,103030.0,103020.0,0.76788146]
[1746745636506,0.19411821,103030.0,103020.0,0.5737444]
[1746745637292,0.19411821,103030.0,103020.0,0.56403755]
[1746745637730,0.19411821,103030.0,103020.0,0.5737444]
[1746745638173,0.19411821,103030.0,103020.0,0.56403755]
[1746745638999,0.19411821,103030.0,103020.0,0.35601217]
[1746745639834,0.19411821,103030.0,103020.0,0.36571902]
[1746745640958,0.19411821,103030.0,103020.0,0.56956274]
[1746745641627,0.02911696,103030.0,103020.0,0.58897559]
[1746745641847,0.03882287,103030.0,103020.0,0.58897559]
[1746745642516,0.03882287,103030.0,103020.0,0.61418215]
[1746745642960,0.02911696,103030.0,103020.0,0.61418215]
[1746745643189,0.00970459,103040.0,103030.0,0.57777593]
[1746745643402,0.22321304,103040.0,103030.0,0.59327715]
[1746745643621,0.20380415,103040.0,103030.0,0.35454085]
[1746745643828,0.20380415,103040.0,103030.0,0.5785784]
[1746745644041,0.20380415,103040.0,103030.0,0.78240233]
[1746745644489,0.20580415,103040.0,103030.0,0.78240233]
[1746745644707,0.21179937,103040.0,103030.0,0.5785784]
[1746745644930,0.22989937,103040.0,103030.0,0.34]
[1746745645140,0.03882551,103020.0,103010.0,1.00270663]
[1746745645335,0.03882551,103020.0,103010.0,1.35351823]
[1746745645336,0.04853226,103020.0,103010.0,1.35351823]
[1746745645570,0.00970553,103030.0,103020.0,0.57778588]
[1746745645808,0.24264595,103030.0,103020.0,0.34]
[1746745646009,0.21352984,103030.0,103020.0,0.56403755]
[1746745646235,0.24612984,103030.0,103020.0,0.34]
[1746745646712,0.24612984,103030.0,103010.0,0.02988779]
[1746745646713,0.23644372,103020.0,103010.0,0.02988779]
[1746745646940,0.23644372,103020.0,103010.0,0.25092534]
[1746745647187,0.22975029,103020.0,103010.0,0.44508124]
[1746745647458,0.21355029,103020.0,103010.0,0.46932969]
[1746745647888,0.21355029,103020.0,103010.0,0.80732969]
[1746745648109,0.21355029,103020.0,103010.0,0.59399955]
[1746745648341,0.22325714,103020.0,103010.0,0.80832969]
[1746745648979,0.22325714,103020.0,103010.0,0.8180372]
[1746745649635,0.24615057,103020.0,103010.0,0.79862209]
[1746745649877,0.24615057,103020.0,103010.0,0.80832988]
[1746745650093,0.24615057,103020.0,103010.0,0.81803758]
[1746745650928,0.23644391,103020.0,103010.0,0.81803758]
[1746745651162,0.23644391,103020.0,103010.0,0.02588779]
[1746745651394,0.33711083,103020.0,103010.0,0.001]
[1746745651829,0.56114838,103020.0,103010.0,0.001]
[1746745652060,0.58936832,103020.0,103010.0,0.001]
[1746745652273,0.2364635,103010.0,103000.0,0.0243346]
[1746745652488,0.33713042,103010.0,103000.0,0.0243346]
[1746745652898,0.33713042,103010.0,103000.0,0.3643346]
[1746745653337,0.33913042,103010.0,103000.0,0.37338786]
[1746745653566,0.33913042,103010.0,103000.0,0.80130889]
[1746745653567,0.23177101,103010.0,103000.0,0.80130889]
[1746745653787,0.03112281,103010.0,103000.0,0.85176636]
[1746745654017,0.22527871,103010.0,103000.0,0.85176655]
[1746745654229,0.03112281,103010.0,103000.0,0.84497481]
[1746745654441,0.0428306,103010.0,103000.0,0.83592155]
[1746745654652,0.0428306,103010.0,103000.0,0.84562972]
[1746745655144,0.22727899,103010.0,103000.0,0.81650493]
[1746745656014,0.22727852,103010.0,103000.0,0.83592146]
[1746745656430,0.22727852,103010.0,103000.0,0.82621329]
[1746745656645,0.2078636,103010.0,103000.0,0.80679648]
[1746745657064,0.2233636,103010.0,103000.0,0.80679648]
[1746745657698,0.2078636,103010.0,103000.0,0.81650493]
[1746745657911,0.03312214,103010.0,103000.0,0.83592136]
[1746745658118,0.03312214,103010.0,103000.0,0.85102136]
[1746745658333,0.24807091,103010.0,103000.0,0.37887545]
[1746745658762,0.24807091,103010.0,103000.0,0.0243346]
[1746745659199,0.24407091,103010.0,103000.0,0.0243346]
[1746745659435,0.24407091,103010.0,103000.0,0.03338042]
[1746745659619,0.24407091,103010.0,103000.0,0.03438042]
[1746745661649,0.24407091,103010.0,103000.0,0.45259272]
[1746745661876,0.21357091,103010.0,103000.0,0.47200981]
[1746745662299,0.2038635,103010.0,103000.0,0.47200981]
[1746745662515,0.2038635,103010.0,103000.0,0.48710981]
[1746745662781,0.2038635,103010.0,103000.0,0.47200981]
[1746745663009,0.01941492,103010.0,103000.0,0.50596699]
[1746745663241,0.21357082,103010.0,103000.0,0.48655057]
[1746745663450,0.21357082,103010.0,103000.0,0.49625883]
[1746745664199,0.22325676,103020.0,103010.0,0.24321205]
[1746745664412,0.21355029,103020.0,103010.0,0.47695701]
[1746745664825,0.21355029,103020.0,103010.0,0.48600283]
[1746745665463,0.21755029,103020.0,103010.0,0.48600283]
[1746745666281,0.02341323,103020.0,103010.0,0.83571005]
[1746745666512,0.22725704,103020.0,103010.0,0.82600283]
[1746745666712,0.22725732,103020.0,103010.0,0.80119542]
[1746745666914,0.01370638,103020.0,103010.0,0.80119542]
[1746745667131,0.02341295,103020.0,103010.0,0.85190996]
[1746745667327,0.0428257,103020.0,103010.0,0.85190996]
[1746745667739,0.0428257,103020.0,103010.0,0.84286414]
[1746745667948,0.22725667,103020.0,103010.0,0.8234496]
[1746745668170,0.21755029,103020.0,103010.0,0.78244209]
[1746745669014,0.20784372,103020.0,103010.0,0.78244209]
[1746745669215,0.20784372,103020.0,103010.0,0.7921496]
[1746745669628,0.20784372,103020.0,103010.0,0.5785784]
[1746745670143,0.20784372,103020.0,103010.0,0.7817722]
[1746745670399,0.20784372,103020.0,103010.0,0.5876163]
[1746745670683,0.20784372,103020.0,103010.0,0.78244209]
[1746745670888,0.20784372,103020.0,103010.0,0.79214969]
[1746745671806,0.20784372,103020.0,103010.0,0.8018572]
[1746745672171,0.02341304,103020.0,103010.0,0.83647174]
[1746745672369,0.02341304,103020.0,103010.0,0.85297174]
[1746745672789,0.03311913,103020.0,103010.0,0.95363866]
[1746745674034,0.04282588,103020.0,103010.0,0.93713866]
[1746745674166,0.23696294,103020.0,103010.0,0.88310901]
[1746745674367,0.22725732,103020.0,103010.0,0.89281671]
[1746745674576,0.22725732,103020.0,103010.0,0.91223172]
[1746745674991,0.02341304,103020.0,103010.0,0.92193904]
[1746745675192,0.02341304,103020.0,103010.0,0.95363838]
[1746745675409,0.22725695,103020.0,103010.0,0.94393125]
[1746745675793,0.22725695,103020.0,103010.0,0.92743125]
[1746745675967,0.03311913,103020.0,103010.0,0.95263838]
[1746745676175,0.04282588,103020.0,103010.0,0.95263838]
[1746745676574,0.04282588,103020.0,103010.0,0.93713838]
[1746745678179,0.01370609,103020.0,103010.0,0.93713838]
[1746745678612,0.03311866,103020.0,103010.0,0.93713838]
[1746745678819,0.04282532,103020.0,103010.0,0.93713838]
[1746745679257,0.24666913,103020.0,103010.0,0.92193838]
[1746745679857,0.24666989,103020.0,103010.0,0.91223125]
[1746745680063,0.03311923,103020.0,103010.0,0.9219379]
[1746745680271,0.004,103020.0,103010.0,0.9521379]
[1746745680492,0.004,103020.0,103010.0,1.17617545]
[1746745680699,0.004,103020.0,103010.0,0.9521379]
[1746745680907,0.004,103020.0,103010.0,1.3521379]
[1746745681123,0.004,103020.0,103010.0,1.36117667]
[1746745681753,0.004,103020.0,103010.0,1.36117581]
[1746745683277,0.013706,103020.0,103010.0,1.36117581]
[1746745683486,0.004,103020.0,103010.0,1.36117581]
[1746745683921,0.22681231,103050.0,103030.0,0.2280704]
[1746745684137,0.21135186,103050.0,103040.0,0.56403755]
[1746745684345,0.21135186,103050.0,103040.0,0.58761631]
[1746745684989,0.22735186,103050.0,103040.0,0.58761631]
[1746745685699,0.23116219,103050.0,103040.0,0.36357876]
[1746745686277,0.23816219,103050.0,103040.0,0.36357876]
[1746745686699,0.23416219,103050.0,103040.0,0.36357876]
[1746745687100,0.23816219,103050.0,103040.0,0.36357876]
[1746745687502,0.23816219,103050.0,103040.0,0.58761631]
[1746745688386,0.23816219,103050.0,103040.0,0.36357876]
[1746745690143,0.23816219,103050.0,103040.0,0.00903791]
[1746745690581,0.33882911,103050.0,103040.0,0.00903791]
[1746745691121,0.56286666,103050.0,103040.0,0.00903791]
[1746745691545,0.2452501,103020.0,103010.0,0.35648199]
[1746745691770,0.24904525,103020.0,103010.0,0.56403755]
[1746745692181,0.24904525,103020.0,103010.0,0.57308308]
[1746745692382,0.24904525,103020.0,103010.0,0.58762393]
[1746745692982,0.24904525,103020.0,103010.0,0.36558638]
[1746745693184,0.24904525,103020.0,103010.0,0.35404553]
[1746745694433,0.21734525,103020.0,103010.0,0.79648762]
[1746745694613,0.21734525,103020.0,103010.0,0.59262393]
[1746745694614,0.21734562,103020.0,103010.0,0.59262393]
[1746745695694,0.24774562,103020.0,103010.0,0.35404553]
[1746745699608,0.24774562,103020.0,103010.0,0.01404553]
[1746745700182,0.24395047,103020.0,103010.0,0.01404553]
[1746745700353,0.34461739,103020.0,103010.0,0.01404553]
[1746745700563,0.56865494,103020.0,103010.0,0.01404553]
[1746745700809,0.34461739,103020.0,103010.0,0.01404553]
[1746745701235,0.34461739,103020.0,103010.0,0.002]
[1746745702435,0.2038635,103010.0,103000.0,0.02337323]
[1746745702638,0.33583042,103010.0,103000.0,0.002]
[1746745702914,0.55986797,103010.0,103000.0,0.002]
[1746745703649,0.33583042,103010.0,103000.0,0.002]
[1746745704245,0.33583042,103010.0,103000.0,0.02205581]
[1746745704443,0.33783042,103010.0,103000.0,0.003]
[1746745705911,0.2371635,103010.0,103000.0,0.003]
[1746745706111,0.2371635,103010.0,103000.0,0.002]
[1746745706493,0.2381635,103010.0,103000.0,0.002]
[1746745706700,0.33883042,103010.0,103000.0,0.002]
[1746745707105,0.63856847,103010.0,103000.0,0.002]
[1746745709358,0.56286797,103010.0,103000.0,0.002]
[1746745714632,0.21363294,102980.0,102970.0,0.64944097]
[1746745714841,0.21363294,102980.0,102970.0,0.65929572]
[1746745715057,0.21363294,102980.0,102970.0,0.67469572]
[1746745715905,0.21463294,102980.0,102970.0,0.68648472]
[1746745716518,0.21463294,102980.0,102970.0,0.69048472]
[1746745716726,0.21463294,102980.0,102970.0,0.71879478]
[1746745717157,0.21463294,102980.0,102970.0,0.71879497]
[1746745717369,0.20492289,102980.0,102970.0,0.70229497]
[1746745717582,0.20492289,102980.0,102970.0,0.71200615]
[1746745717776,0.001,102980.0,102970.0,0.73821667]
[1746745718010,0.03013044,102980.0,102970.0,0.73821667]
[1746745718213,0.03013044,102980.0,102970.0,0.7442881]
[1746745718567,0.03984002,102980.0,102970.0,0.7442881]
[1746745718772,0.01070986,102980.0,102970.0,0.7442881]
[1746745718957,0.02042001,102980.0,102970.0,0.7442881]
[1746745719199,0.01070986,102980.0,102970.0,0.73523976]
[1746745719410,0.01070986,102980.0,102970.0,0.74427406]
[1746745719628,0.02041991,102980.0,102970.0,0.74427406]
[1746745719847,0.01070986,102980.0,102970.0,0.74427406]
[1746745720074,0.01070986,102980.0,102970.0,1.21527406]
[1746745720710,0.001,102980.0,102970.0,1.21527406]
[1746745720951,0.01070986,102980.0,102970.0,1.21527406]
[1746745721389,0.001,102980.0,102970.0,1.21527406]
[1746745721613,0.00970807,103000.0,102990.0,0.26305571]
[1746745721837,0.02912487,103000.0,102990.0,0.48709326]
[1746745722043,0.23300835,103000.0,102990.0,0.25863777]
[1746745722253,0.21359202,103000.0,102990.0,0.02061228]
[1746745722466,0.21359202,103000.0,102990.0,0.22451557]
[1746745722684,0.21359202,103000.0,102990.0,0.23422506]
[1746745722892,0.21359202,103000.0,102990.0,0.24425936]
[1746745723278,0.21359202,103000.0,102990.0,0.24525936]
[1746745724116,0.20388348,103000.0,102990.0,0.24525936]
[1746745724727,0.19417475,103000.0,102990.0,0.23554987]
[1746745724906,0.19417475,103000.0,102990.0,0.24525945]
[1746745728878,0.01941605,103000.0,102990.0,0.96168224]
[1746745729094,0.1961559,103010.0,103000.0,0.57969982]
[1746745729095,0.02141492,103010.0,103000.0,0.57969982]
[1746745729330,0.2155712,103010.0,103000.0,0.59633755]
[1746745729545,0.2155712,103010.0,103000.0,0.59621771]
[1746745729994,0.2155712,103010.0,103000.0,0.60525201]
[1746745730193,0.2155712,103010.0,103000.0,0.8091354]
[1746745730606,0.2165712,103010.0,103000.0,0.8091354]
[1746745730811,0.2175712,103010.0,103000.0,0.8091354]
[1746745731507,0.2175712,103010.0,103000.0,0.58509785]
[1746745732318,0.2175712,103010.0,103000.0,0.56869785]
[1746745732898,0.22727899,103010.0,103000.0,0.60401465]
[1746745733096,0.22727899,103010.0,103000.0,0.63401465]
[1746745733313,0.22727899,103010.0,103000.0,0.65021465]
[1746745733534,0.01370732,103010.0,103000.0,0.88879305]
[1746745733747,0.04282947,103010.0,103000.0,0.89850112]
[1746745734571,0.21757101,103010.0,103000.0,0.63884724]
[1746745734776,0.21757101,103010.0,103000.0,0.6132387]
[1746745734993,0.2078635,103010.0,103000.0,0.39964658]
[1746745735619,0.2386635,103010.0,103000.0,0.38510573]
[1746745740465,0.2386635,103010.0,103000.0,0.04510573]
[1746745753398,0.33933042,103010.0,103000.0,0.04510573]
[1746745754406,0.5544434,103010.0,103000.0,0.04510573]
[1746745754564,0.33933042,103010.0,103000.0,0.04510573]
[1746745754765,0.48639063,103010.0,103000.0,0.04510573]
[1746745755828,0.56343773,103010.0,103000.0,0.04510573]
[1746745756722,0.33933042,103010.0,103000.0,0.04510573]
[1746745757522,0.2232635,103010.0,103000.0,0.04510573]
[1746745757734,0.2078635,103010.0,103000.0,0.04510573]
[1746745758193,0.2396635,103010.0,103000.0,0.04510573]